Cogmind - Beta 13 @@@ ROGUE MODE // 2024.08.04 @ 20:55:11 Player: weedlord420 Result: Self-destructed Performance ------------- Evolutions (2) 1000 Regions Visited (5) 1000 Robots Destroyed (30) 150 Value Destroyed (764) 764 Prototype IDs (24) 480 Alien Tech Used (0) 0 Bonus (300) 300 TOTAL SCORE: 3694 Bonus ------- Aligned with FarCom 300 Cogmind --------- Core Integrity 518/550 Matter 158/300 Energy 47/140 System Corruption 0% Temperature Cool (9) Movement Rolling (110) Ox2 Location -8/Materials Parts ------- > --- POWER (1) -------- Light Deuterium Engine > --- PROPULSION (3) --- Wheel > --- UTILITY (5) ------ Heat Sink Medium Storage Unit Core Shielding Hacking Suite > --- WEAPON (2) ------- Pulse Rifle Latent Energy Streamer > --- INVENTORY (10) --- Decoy Drone Bay (16/16) Medium Laser Beam Cannon Assault Rifle Minigun Datajack Peak State ------------ > --- POWER ------------ (None) > --- PROPULSION ------- Wheel > --- UTILITY ---------- Heat Sink Medium Storage Unit Improved Terrain Scanner Core Shielding Hacking Suite > --- WEAPON ----------- Pulse Rifle Latent Energy Streamer > --- INVENTORY -------- Light Deuterium Engine Decoy Drone Bay Medium Laser Beam Cannon Assault Rifle Minigun Datajack [Rating: 25] Favorites ----------- Power Ion Engine Engine Ion Engine Propulsion Light Treads Treads Light Treads Wheel Wheel Utility Medium Storage Unit Device Heat Sink Storage Medium Storage Unit Processor Targeting Computer Hackware Hacking Suite Protection Light Armor Plating Weapon Light Cannon Energy Gun Medium Laser Energy Cannon Beam Cannon Ballistic Gun Light Assault Rifle Ballistic Cannon Light Cannon Launcher Rocket Launcher Build | -11 -10 -10 -10 -9 -8 ------- Run | Yrd Mat Min Exi Min Mat Slots Evolved 4 | . . . . . 4 Power . | . . . . . . Propulsion 1 | . . . . . 1 Utility 3 | . . . . . 3 Weapon . | . . . . . . Parts Attached 39 | 6 9 10 . 1 13 Power 5 | 1 1 1 . . 2 Engine 5 | 1 1 1 . . 2 Core . | . . . . . . Reactor . | . . . . . . Propulsion 7 | 2 2 2 . . 1 Treads 5 | 2 2 . . . 1 Leg . | . . . . . . Wheel 2 | . . 2 . . . Hover . | . . . . . . Flight . | . . . . . . Utility 12 | 1 3 3 . 1 4 Device 3 | . . . . . 3 Storage 2 | 1 . 1 . . . Processor 1 | . 1 . . . . Hackware 1 | . . . . . 1 Protection 5 | . 2 2 . 1 . Artifact . | . . . . . . Weapon 15 | 2 3 4 . . 6 Energy Gun 2 | . 1 . . . 1 Energy Cannon 3 | . . 2 . . 1 Ballistic Gun 5 | 2 1 . . . 2 Ballistic Cannon 2 | . 1 1 . . . Launcher 3 | . . 1 . . 2 Special Weapon . | . . . . . . Impact Weapon . | . . . . . . Slashing Weapon . | . . . . . . Piercing Weapon . | . . . . . . Special Melee Weapon . | . . . . . . Unidentified Prototypes 1 | . . . . . 1 Parts Lost 14 | . 3 6 . . 5 Power 3 | . 1 1 . . 1 Propulsion 3 | . . 1 . . 2 Utility 3 | . . 2 . . 1 Weapon 5 | . 2 2 . . 1 Highest Loss Streak 5 | . 2 5 . . 5 To Critical Strikes . | . . . . . . Average Slot Usage (%) 87 | . 96 82 85 85 91 Engine 7 | . 11 6 . . 6 Treads 17 | . 28 18 . . 6 Wheel 6 | . . 1 28 28 17 Device 1 | . . . . . 15 Storage 13 | . 14 14 14 14 9 Processor 1 | . 5 . . . . Protection 10 | . 8 12 14 14 9 Energy Gun 3 | . 2 3 . . 7 Energy Cannon 6 | . . 9 14 14 1 Ballistic Gun 4 | . 13 . . . 6 Ballistic Cannon 7 | . 10 8 . . . Launcher 5 | . . 6 14 14 2 Naked Turns . | . . . . . . Heaviest Build 27 | 14 18 24 18 18 27 Greatest Support 40 | 40 40 40 20 20 20 Greatest Overweight (x) 2 | 2 . 1 . . 1 Average Overweight (x) . | . . . . . . Largest Inventory Capacity 10 | 8 8 10 10 10 10 Average Capacity 9 | 6 8 9 10 10 10 Most Carried 10 | 5 8 10 10 10 10 Average Carried 7 | 1 4 8 9 9 7 Final Capacity 10 | 8 8 10 10 10 10 Final Carried 10 | 1 8 9 10 10 7 Class Distribution -------------------- 89% | Mutant 6% | Scavenger-Skirmisher Dominant Class ---------------- Mutant | -10/Materials Mutant | -10/Mines Mutant | -10/Exiles Mutant | -9/Mines Scavenger-Skirmisher | -8/Materials Resources | -11 -10 -10 -10 -9 -8 ----------- Run | Yrd Mat Min Exi Min Mat Matter Collected 881 | 237 342 216 . 10 76 Remotely . | . . . . . . Salvage Created 1075 | . 640 191 . . 244 Parts 56 | . 23 13 . . 20 Haulers Intercepted 1 | . 1 . . . . Recyclers Shooed 3 | . 3 . . . . Parts Field Recycled . | . . . . . . Retrieved Matter . | . . . . . . Parts Self-Destructed . | . . . . . . Prevented . | . . . . . . Kills | -11 -10 -10 -10 -9 -8 ------- Run | Yrd Mat Min Exi Min Mat Combat Hostiles Destroyed 25 | . 8 11 . . 6 Guns 9 | . 5 . . . 4 Cannons 8 | . 3 5 . . . AOE 8 | . . 6 . . 2 Classes Destroyed 11 | . 6 3 . . 2 Worker 1 | . . . . . 1 Builder 1 | . 1 . . . . Hauler 1 | . 1 . . . . Recycler 5 | . 3 1 . . 1 Operator 1 | . 1 . . . . Watcher 1 | . 1 . . . . Swarmer 6 | . . 3 . . 3 Grunt 12 | . 8 2 . . 2 Demolisher 1 | . . 1 . . . Hunter 1 | . . . . . 1 Assembled 5 | . . 5 . . . Best Kill Streak 5 | . 5 3 . . 4 Combat Bots Only 4 | . 4 3 . . 3 Max Kills in Single Turn 3 | . 1 3 . . 2 Gunslinging . | . . . . . . Exploded 2 | . . 2 . . 1 Melee . | . . . . . . Uniques/NPCs Destroyed . | . . . . . . Combat | -11 -10 -10 -10 -9 -8 -------- Run | Yrd Mat Min Exi Min Mat Hostile Shots Fired 144 | . 69 36 . . 39 Missed 38 | . 15 9 . . 14 Damage Taken 1808 | . 681 737 . . 390 Core 259 | . 34 193 . . 32 Absorbed by Shields . | . . . . . . Redirected to Shielding 7 | . . . . . 7 Core Remaining (%) 54 | 100 . . . 9 . Volleys Fired 91 | . 51 22 . . 18 Largest 2 | . 2 2 . . 2 Hottest 96 | . 55 95 . . 96 Shots Fired 173 | . 100 39 . . 34 Gun 101 | . 74 1 . . 26 Cannon 58 | . 26 31 . . 1 Launcher 14 | . . 7 . . 7 Special . | . . . . . . Kinetic 123 | . 100 14 . . 9 Thermal 36 | . . 18 . . 18 Explosive 14 | . . 7 . . 7 Electromagnetic . | . . . . . . Robot Hit Streak 12 | . 12 6 . . 8 Robot Miss Streak 5 | . 2 3 . . 5 Penetration Max . | . . . . . . Secondary Targets 3 | . 3 . . . . Max Gunslinging Chain 1 | . 1 . . . . Shots Hit Robots 103 | . 68 21 . . 14 Core Hits 61 | . 28 16 . . 17 Critical Kills . | . . . . . . Critical Parts Destroyed . | . . . . . . Critical Strikes 1 | . 1 . . . . Blast 1 | . 1 . . . . Melee Attacks . | . . . . . . Impact . | . . . . . . Slashing . | . . . . . . Piercing . | . . . . . . Sneak Attacks . | . . . . . . Combat Hostiles . | . . . . . . Follow-up Attacks . | . . . . . . Damage Inflicted 2126 | . 845 661 . . 620 Guns 817 | . 586 . . . 231 Cannons 538 | . 259 279 . . . Explosions 770 | . . 381 . . 389 Melee . | . . . . . . Ramming 1 | . . 1 . . . Kinetic 926 | . 845 70 . . 11 Thermal 509 | . . 209 . . 300 Explosive 690 | . . 381 . . 309 Electromagnetic . | . . . . . . Impact . | . . . . . . Slashing . | . . . . . . Piercing . | . . . . . . Highest Corruption . | . . . . . . Average Corruption . | . . . . . . Corruption Purged . | . . . . . . Corruption Blocked . | . . . . . . Overload Shots . | . . . . . . Overflow Damage 4 | . . . . . 4 Projectiles . | . . . . . . Explosions 4 | . . . . . 4 Melee . | . . . . . . Knockbacks 3 | . 2 1 . . . Impact . | . . . . . . Kinetic 3 | . 2 1 . . . Secondary . | . . . . . . Self-Inflicted Damage 129 | . . 101 . . 28 Shots 5 | . . 4 . . 1 Rammed 1 | . . 1 . . . Targets Rammed 1 | . . 1 . . . Kicked . | . . . . . . Crushed . | . . . . . . Highest Temperature 272 | . 79 272 . . 36 Average Temperature 40 | . 12 81 . . 14 Received Heat Transfer 621 | . 402 84 . . 135 Effects 1 | . . 1 . . . Energy Bleed 1 | . . 1 . . . Siege Activations . | . . . . . . Robots Corrupted . | . . . . . . Combat Hostiles . | . . . . . . Parts Fried . | . . . . . . Impact Corruptions . | . . . . . . Robots Melted . | . . . . . . Combat Hostiles . | . . . . . . Parts Melted 1 | . . . . . 1 Heat Transferred 1025 | . . 444 . . 581 Parts Sabotaged . | . . . . . . Parts Stolen . | . . . . . . Parts Stripped . | . . . . . . Power Chain Reactions . | . . . . . . Alert | -11 -10 -10 -10 -9 -8 ------- Run | Yrd Mat Min Exi Min Mat Peak Influence 264 | . 228 100 . . 264 Initial . | . . . . . . Average 57 | . 102 27 . . 108 Maximum Alert Level 1 | . 1 . . . 1 Low Security (%) 96 | 100 91 100 . 100 88 Level 1 3 | . 8 . . . 11 Level 2 . | . . . . . . Level 3 . | . . . . . . Level 4 . | . . . . . . Level 5 . | . . . . . . High Security . | . . . . . . Max Security . | . . . . . . Squads Dispatched 4 | . 3 . . . 1 Investigation 2 | . 2 . . . . Extermination . | . . . . . . Reinforcement 2 | . 1 . . . 1 Assault . | . . . . . . Garrison . | . . . . . . Intercept . | . . . . . . Searches Triggered . | . . . . . . Construction Impeded . | . . . . . . Haulers Reinforced . | . . . . . . Active Scanning Responses . | . . . . . . Cargo Convoy Interrupts . | . . . . . . Stealth | -11 -10 -10 -10 -9 -8 --------- Run | Yrd Mat Min Exi Min Mat Distress Signals 3 | . 1 . . . 2 Communications Jammed . | . . . . . . Distress Signals . | . . . . . . Times Spotted 46 | . 15 18 . . 13 Peak Tracking Total 7 | . 5 7 . . 7 Tactical Retreats 1 | . . 1 . . . Traps | -11 -10 -10 -10 -9 -8 ------- Run | Yrd Mat Min Exi Min Mat Traps Triggered 2 | . 2 . . . . Indirectly . | . . . . . . Trap Hack Attempts . | . . . . . . Triggered . | . . . . . . Disarmed . | . . . . . . Reprogrammed . | . . . . . . Reused . | . . . . . . Traps Extracted . | . . . . . . Installed . | . . . . . . Triggered . | . . . . . . Machines | -11 -10 -10 -10 -9 -8 ---------- Run | Yrd Mat Min Exi Min Mat Machines Disabled 4 | . . . . . 4 Max in Single Turn 2 | . . . . . 2 Machines Repaired . | . . . . . . Machines Dismantled . | . . . . . . Machines Sabotaged . | . . . . . . Overloaded Fab Kills . | . . . . . . Hacking | -11 -10 -10 -10 -9 -8 --------- Run | Yrd Mat Min Exi Min Mat Machines Accessed 8 | . 5 . 1 1 1 Terminals 6 | . 5 . . . 1 Fabricators . | . . . . . . Repair Stations . | . . . . . . Recycling Units . | . . . . . . Scanalyzers . | . . . . . . Garrison Access . | . . . . . . Total Hacks 16 | . 11 . 1 1 3 Successful 8 | . 5 . 1 1 1 Failed 8 | . 6 . . . 2 Catastrophic 1 | . 1 . . . . Database Lockouts . | . . . . . . Manual 10 | . 7 . 1 . 2 Terminals 14 | . 11 . . . 3 Fabricators . | . . . . . . Repair Stations . | . . . . . . Recycling Units . | . . . . . . Scanalyzers . | . . . . . . Garrison Access . | . . . . . . Terminal Hacks 5 | . 2 . 1 1 1 Open Door 1 | . . . . 1 . Terminal Index 1 | . 1 . . . . Locate Traps 2 | . 1 . . . 1 Derelict Proto ID Bank 1 | . . . 1 . . Fabricator Hacks . | . . . . . . Repair Station Hacks . | . . . . . . Recycling Unit Hacks . | . . . . . . Scanalyzer . | . . . . . . Garrison Access Hacks . | . . . . . . Unauthorized Hacks 3 | . 3 . . . . Terminals 3 | . 3 . . . . Assimilate 2 | . 2 . . . . Operators 1 | . 1 . . . . Fabricators . | . . . . . . Repair Stations . | . . . . . . Recycling Units . | . . . . . . Scanalyzers . | . . . . . . Garrison Access . | . . . . . . Data Cores Recovered . | . . . . . . Used . | . . . . . . Hacking Detections 6 | . 5 . . . 1 Full Trace Events 1 | . 1 . . . . Feedback Events . | . . . . . . Feedback Blocked . | . . . . . . Robot Schematics Acquired . | . . . . . . Robots Built . | . . . . . . Authchips . | . . . . . . Time . | . . . . . . Total Robot Build Rating . | . . . . . . Part Schematics Acquired . | . . . . . . Parts Built . | . . . . . . Authchips . | . . . . . . Time . | . . . . . . Total Part Build Rating . | . . . . . . Parts Repaired . | . . . . . . Time . | . . . . . . Parts Recycled . | . . . . . . Recycled Matter . | . . . . . . Retrieved Matter . | . . . . . . Retrieved Components . | . . . . . . Parts Scanalyzed . | . . . . . . Part Schematics Acquired . | . . . . . . Parts Damaged . | . . . . . . Bothacking | -11 -10 -10 -10 -9 -8 ------------ Run | Yrd Mat Min Exi Min Mat Used RIF Installer . | . . . . . . Robots Hacked . | . . . . . . Non-combat . | . . . . . . Combat . | . . . . . . Robot Hacks Applied . | . . . . . . Relay Couplers Released . | . . . . . . Fabnet Peak Effective % . | . . . . . . Robots Rewired . | . . . . . . Allies Hacked . | . . . . . . Hacks Repelled . | . . . . . . Allies | -11 -10 -10 -10 -9 -8 -------- Run | Yrd Mat Min Exi Min Mat Total Allies 4 | . 1 3 . . . Largest Group 4 | . 1 4 . . . Highest-Rated Group 50 | . 10 50 . . . Highest-Rated Ally 16 | . 10 16 . . . Total Orders . | . . . . . . Ally Attacks 7 | . . 7 . . . Total Damage 53 | . . 53 . . . Kills . | . . . . . . Allies Corrupted . | . . . . . . Allies Melted . | . . . . . . Intel | -11 -10 -10 -10 -9 -8 ------- Run | Yrd Mat Min Exi Min Mat Robot Analysis Total . | . . . . . . Derelict Logs Recovered . | . . . . . . Drone Launches . | . . . . . . Drone Recoveries . | . . . . . . Exploration | -11 -10 -10 -10 -9 -8 ------------- Run | Yrd Mat Min Exi Min Mat Turns Passed 2647 | 62 817 1194 186 161 227 Spaces Moved 1582 | 46 388 612 231 174 131 Core 21 | 21 . . . . . Treads 937 | 25 388 524 . . . Legs . | . . . . . . Wheels 624 | . . 88 231 174 131 Hover . | . . . . . . Flight . | . . . . . . Fastest Speed 50 | 50 160 80 80 80 80 Average Speed 130 | 111 160 155 80 80 90 Slowest Speed 240 | 160 160 240 80 80 95 Overloaded Moves . | . . . . . . Propulsion Burnouts . | . . . . . . Robots Hopped . | . . . . . . Cave-ins Triggered . | . . . . . . Exploration Rate (%) 45 | 3 67 93 60 24 24 Regions Visited 5 Branch Regions 3 Pre-discovered Areas . | . . . . . . Known Exits Taken . | . . . . . . Unknown Exits Taken 5 | 1 1 1 1 1 . Scrap Searched 3 | . . 3 . . . Spaces Dug . | . . . . . . Terrain Destroyed 114 | . . 46 . . 68 Melee . | . . . . . . Projectile . | . . . . . . AOE 114 | . . 46 . . 68 Terrain Rammed . | . . . . . . Walls Destroyed . | . . . . . . Machines Disabled . | . . . . . . Actions | -11 -10 -10 -10 -9 -8 --------- Run | Yrd Mat Min Exi Min Mat Total 1998 | 56 490 818 231 197 206 Wait 238 | . 28 157 . 15 38 Move 1577 | 45 387 611 230 173 131 Hop . | . . . . . . Pick Up 38 | 5 14 11 1 3 4 Fast Attach 5 | 2 2 . . 1 . Attach 25 | 4 5 7 . . 9 Detach 2 | . . . . . 2 Swap 9 | . 2 3 . . 4 Drop 12 | . 1 6 . 5 . Fire 91 | . 51 22 . . 18 Melee . | . . . . . . Ram . | . . . . . . Kick . | . . . . . . Crush 1 | . . 1 . . . Escape Stasis . | . . . . . . Rewire . | . . . . . . Trap . | . . . . . . Miscellaneous . | . . . . . . Route ------- -11/Scrapyard -10/Materials (discovered 4 exits: [*Mat x2] / [*Min x2]) -10/Mines (discovered 2 exits: [*Mat] / *Exi) -10/Exiles -9/Mines -8/Materials History --------- Turn | Location | Event 15 | -11/Scrapyard | Discovered new exit (range 15) 63 | -11/Scrapyard | Entered Materials 318 | -10/Materials | Build established: Mutant 450 | -10/Materials | Discovered new exit (range 16) 693 | -10/Materials | Discovered new exit (range 15) 782 | -10/Materials | Discovered new exit (range 3) 845 | -10/Materials | Discovered new exit (range 7) 880 | -10/Materials | Entered Mines 880 | -10/Mines | Accompanied by 1 ally 889 | -10/Mines | Met a Derelict bent on vengeance 1177 | -10/Mines | Received a Rocket Launcher from a helpful Derelict 1403 | -10/Mines | Assisted by bots powering up and referring to "LRC-V3" 1440 | -10/Mines | Assembled infested the area 1465 | -10/Mines | Core integrity fell below 50% 1493 | -10/Mines | Lost 4 allies 1505 | -10/Mines | Core integrity fell below 20% 1532 | -10/Mines | Lost 5 parts (1p2u2w) 1846 | -10/Mines | Discovered new exit (range 10) 2070 | -10/Mines | Deemed a non-threat by the Exiles lab entrance 2071 | -10/Mines | Discovered new exit (range 5) 2074 | -10/Mines | Entered Exiles 2094 | -10/Exiles | Met 8R-AWN 2107 | -10/Exiles | Met EX-HEX 2132 | -10/Exiles | Met EX-BIN 2142 | -10/Exiles | Aligned with FarCom system 2143 | -10/Exiles | Given EX-Vault access code 2170 | -10/Exiles | Opened EX-Vault 2178 | -10/Exiles | Found Latent Energy Streamer 2196 | -10/Exiles | Warned to stay clear of 0b10 Research branches 2222 | -10/Exiles | Met EX-DEC 2252 | -10/Exiles | Discovered new exit (range 10) 2260 | -10/Exiles | Left Exiles lab with Latent Energy Streamer 2260 | -10/Exiles | Entered Mines 2275 | -9/Mines | Discovered new exit (range 8) 2345 | -9/Mines | Found the Drone Emporium 2366 | -9/Mines | Found Prototype Device 2421 | -9/Mines | Entered Materials 2421 | -8/Materials | Evolved 4 slots: Propulsion x1, Utility x3 2433 | -8/Materials | Identified Decoy Drone Bay 2648 | -8/Materials | Self-destructed Last Messages --------------- 02602_ W-25 Informer sends out distress signal. 02609_ ALERT: Suspicious intruders detected, dispatching Specialist reinforcements to area. 02615_ Acquired Lgt. Deuterium Engine. 02622_ G-47 Trooper destroyed. 02623_ Imp. Ion Engine destroyed. 02624_ Fusion Modulator explodes. 02624_ Destroyed Particle Gun. 02626_ Wheel destroyed. 02635_ Lgt. Treads destroyed. 02635_ Destroyed Lgt. Treads. 02636_ U-05 Engineer builds a Wall. 02638_ G-47 Trooper destroyed. 02639_ Rocket Launcher destroyed. 02641_ U-05 Engineer lays Concrete. 02642_ U-05 Engineer builds a Wall. 02644_ U-05 Engineer lays Concrete. 02645_ Imp. Terrain Scanner destroyed. 02646_ U-05 Engineer lays Concrete. 02647_ U-05 Engineer builds a Wall. Map ----- +----------------------------------------------------+ | ?????????????????????????????????????????????????? | | ?????????????????????????????????????????????????? | | ?????????????????????????????????????????????????? | | ?????????????????????????????????????????????????? | | ????????????????????#? ??????????????????????????? | | ?????????????????????????????????????????????????? | | ?????????????????????????????????????????????????? | | ?????????????????????????????????????????????????? | | ?????????????????????????????????????????????????? | | ???????????????????????? ????????????????????????? | | ?????????????????????????????????????????????????? | | ??????????????????? ??????????????????#??????????? | | ????????????????# ???????????#???#### # ## ??????? | | ????????????????# ??????#+#?????# " ?????? | | ????????????????# ?????# ###### """ ?????? | | ????????????????# ##### ## ! ]]] "" #?????? | | ????????????????# # ]] "" #?????? | | ????????????????# x ! ; ]] ##????? | | ??????????????#?# x[% g# =! g "#?????? | | ????????????????####### g * = #?????? | | ??????????????????????# m ## " ##?????? | | ???????? ?????????????# #? " " " #??????? | | ???????????############ ##u###u;;####?? ???? | | ????????? w ???????? | | ??????? ? #??#####???????? | | ????????? @ ##???#?????????? | | ?????????############### ##### #??????????????? | | ??????#???######???#???# ###??# #??????????????? | | ???????#?##!!!!##??????##?????# #??????????????? | | ?????????#! !#?????????????# #??????????????? | | ???####### #?????#???????# #??????????????? | | ???# # ########??????# #?????????#????? | | ???# ! = ##?????# #??????????????? | | ???# = ! ! ######## #####??????????? | | ???# * = ???? | | "??# """" = ################ ???? | | ???# "" " ##???????#????????? ???? | | ???# """ " #?????????????????????? ???? | | ""?# """" #???????????????????????????? | | ???# """" " #???????????#???????????????? | | ???# """" " "" #????????#??????????????????? | | ???# """"" """"" #?????#?????????????????????? | | ???# #???????????????????????????? | | #### #??#????????????????????????? | | #?#?????????????????????????? | | " "" #???????????????????????????? | | "R"" #??#????????????????????????? | | """ ????#???????????????????????? | | ######+##############????????????????????????????? | | ?# #??#??????????????????????????????????? | +----------------------------------------------------+ Best States ------------- Heat Dissipation 41 Energy Generation 12 Energy Capacity 265 Matter Stores 300 Matter Capacity 300 Sight Range 16 Terrain Scan Range 16 Terrain Scan Density 10 Armor Coverage 150 Core Shielding 20 Evasion (%) 50 Targeting Accuracy 5 Recoil Reduction 2 Offensive Hacking 10 Item Schematics ----------------- None Robot Schematics ------------------ None Fabricated ------------ Nothing Alien Tech Used ----------------- None Achievements -------------- None Challenges ------------ None Game ------ Seed PhasingConstructScrap Manual? 0 Play Time 00:18:57 Cumulative 57.3 hours Start 2024.08.04 @ 20:35:58 End 2024.08.04 @ 20:55:11 Sessions 1 Manual Loads 0 Difficulty Rogue Special Mode None Game No. 105 Rogue 104 Adventurer 1 Explorer 0 Win Type - Total 0 Types 0/0/0/0/0/0/0/0/0 Lore% 32 Gallery% 45 Achievement% 37 Wizard Run 0 Options --------- Layout 2 ASCII 0 Keyboard 0 Movement Mouse Keybinds 0 Fullscreen 1 Font 48/Smallcaps Map View 50x44 Zoom Use 0% Tactical HUD 1 Map Filters NONE Filters NONE Steam 1 RUN: 98b57d93-579a-4384-9eb6-7d1228061807